fUST/lending_fUST_20250410
["ID","MTS","AMOUNT","RATE_DAILY","PERIOD"]
[357652675,1744275042107,-500.0,0.00016593,2]
[357652676,1744275042119,-500.0,0.00016593,2]
[357652677,1744275042129,-750.74,0.00016593,2]
[357652678,1744275042139,-4377.21,0.00016593,2]
[357652679,1744275042149,-819.63,0.00016593,2]
[357652680,1744275042159,-500.0,0.00016593,2]
[357652681,1744275042169,-1398.87,0.00016593,2]
[357652682,1744275042179,-500.0,0.00016593,2]
[357652683,1744275042190,-541.3,0.00016593,2]
[357652684,1744275042200,-904.53,0.00016593,2]
[357652685,1744275042211,-500.0,0.00016593,2]
[357652686,1744275042221,-1027.07,0.00016593,2]
[357652687,1744275042230,-500.0,0.00016593,2]
[357652688,1744275042240,-500.0,0.00016593,2]
[357652689,1744275042249,-500.0,0.00016593,2]
[357652690,1744275042259,-500.0,0.00016593,2]
[357652691,1744275042269,-500.0,0.00016593,2]
[357652692,1744275042279,-500.0,0.00016593,2]
[357652693,1744275042290,-500.0,0.00016593,2]
[357652694,1744275042300,-4147.02,0.00016593,2]
[357652695,1744275042310,-500.0,0.00016593,2]
[357652696,1744275042465,-566.45914569,0.00016593,2]
[357652697,1744275042475,-5296.19,0.00016593,2]
[357652698,1744275042484,-500.0,0.00016593,2]
[357652699,1744275042494,-1131.98,0.00016593,2]
[357652700,1744275042504,-596.98,0.00016593,2]
[357652701,1744275042514,-729.42,0.00016593,2]
[357652702,1744275042523,-697.18,0.00016593,2]
[357652703,1744275042534,-2682.38,0.00016593,2]
[357652704,1744275042544,-500.0,0.00016593,2]
[357652705,1744275042553,-500.0,0.00016593,2]
[357652706,1744275042563,-500.0,0.00016593,2]
[357652707,1744275042572,-500.0,0.00016593,2]
[357652708,1744275042582,-500.0,0.00016593,2]
[357652709,1744275042591,-2231.79,0.00016594,2]
[357652710,1744275042601,-500.0,0.00016594,2]
[357652711,1744275042611,-326.47343062,0.00016594,2]
[357652712,1744275042620,-731.34,0.00016594,2]
[357652713,1744275042629,-500.0,0.00016594,2]
[357652714,1744275042638,-909.05,0.00016594,2]
[357652715,1744275042647,-563.92,0.00016594,2]
[357652716,1744275042656,-1173.08,0.00016594,2]
[357652717,1744275042665,-500.0,0.00016594,2]
[357652718,1744275042675,-500.0,0.00016594,2]
[357652719,1744275042684,-515.46,0.00016594,2]
[357652720,1744275042694,-190.53288562,0.00016594,2]
[357652721,1744275042703,-500.0,0.00016594,2]
[357652722,1744275042713,-817.46,0.00016594,2]
[357652723,1744275042722,-500.0,0.00016594,2]
[357652724,1744275042732,-500.0,0.00016594,2]
[357652725,1744275042742,-500.0,0.00016594,2]
[357652726,1744275042752,-1131.87,0.00016594,2]
[357652727,1744275042761,-500.0,0.00016594,2]
[357652728,1744275042771,-985.85,0.00016594,2]
[357652729,1744275042780,-500.0,0.00016594,2]
[357652730,1744275042790,-1445.3,0.00016594,2]
[357652731,1744275042799,-500.0,0.00016594,2]
[357652732,1744275042809,-500.0,0.00016594,2]
[357652733,1744275042818,-526.19352226,0.00016594,2]
[357652734,1744275042827,-500.0,0.00016594,2]
[357652735,1744275042838,-777.46,0.00016594,2]
[357652736,1744275042848,-500.0,0.00016594,2]
[357652737,1744275042857,-604.28,0.00016594,2]
[357652738,1744275042867,-569.01,0.00016594,2]
[357652739,1744275042878,-502.75385031,0.00016594,2]
[357652740,1744275042887,-500.0,0.00016594,2]
[357652741,1744275042897,-1784.92,0.00016594,2]
[357652742,1744275042907,-808.81,0.00016594,2]
[357652743,1744275042917,-500.0,0.00016594,2]
[357652744,1744275042927,-1447.18,0.00016594,2]
[357652745,1744275042937,-500.0,0.00016594,2]
[357652746,1744275042947,-2304.58,0.00016594,2]
[357652747,1744275042956,-499.99954222,0.00016594,2]
[357652748,1744275042966,-1543.56,0.00016594,2]
[357652749,1744275042976,-523.74679235,0.00016594,2]
[357652750,1744275042985,-1049.98,0.00016594,2]
[357652751,1744275042995,-500.0,0.00016594,2]
[357652752,1744275043004,-500.0,0.00016594,2]
[357652753,1744275043014,-1286.83,0.00016594,2]
[357652754,1744275043024,-2693.75,0.00016594,2]
[357652755,1744275043033,-1153.48,0.00016594,2]
[357652756,1744275043045,-500.0,0.00016594,2]
[357652757,1744275043055,-4126.24,0.00016594,2]
[357652758,1744275043065,-500.0,0.00016594,2]
[357652759,1744275043075,-565.64,0.00016594,2]
[357652761,1744275043085,-500.0,0.00016594,2]
[357652762,1744275043094,-808.24,0.00016594,2]
[357652763,1744275043103,-1030.23,0.00016594,2]
[357652764,1744275043113,-1337.66,0.00016594,2]
[357652765,1744275043125,-500.0,0.00016594,2]
[357652766,1744275043135,-500.0,0.00016594,2]
[357652767,1744275043145,-640.22258933,0.00016594,2]
[357652769,1744275043155,-1591.94,0.00016594,2]
[357652770,1744275043165,-775.17,0.00016594,2]
[357652771,1744275043174,-500.0,0.00016594,2]
[357652773,1744275043184,-500.0,0.00016594,2]
[357652775,1744275043194,-518.22,0.00016594,2]
[357652777,1744275043203,-500.0,0.00016594,2]
[357652779,1744275043213,-1497.38,0.00016594,2]
[357652781,1744275043223,-500.0,0.00016594,2]
[357652783,1744275043232,-500.0,0.00016594,2]
[357652785,1744275043242,-215.29,0.00016594,2]
[357652788,1744275043252,-656.52,0.00016594,2]
[357652790,1744275043261,-500.0,0.00016594,2]
[357652792,1744275043271,-500.0,0.00016594,2]
[357652793,1744275043281,-500.0,0.00016594,2]
[357652795,1744275043291,-2931.65,0.00016594,2]
[357652797,1744275043302,-818.53,0.00016594,2]
[357652799,1744275043311,-500.0,0.00016594,2]
[357652800,1744275043321,-589.99,0.00016594,2]
[357652801,1744275043330,-1292.25,0.00016594,2]
[357652802,1744275043340,-825.98,0.00016594,2]
[357652803,1744275043350,-1663.24,0.00016594,2]
[357652804,1744275043361,-500.0,0.00016594,2]
[357652805,1744275043370,-1510.52,0.00016594,2]
[357652806,1744275043379,-592.1788537,0.00016594,2]
[357652807,1744275043389,-531.27,0.00016594,2]
[357652808,1744275043398,-571.44531627,0.00016594,2]
[357652809,1744275043408,-4911.4,0.00016594,2]
[357652810,1744275043418,-570.32,0.00016594,2]
[357652811,1744275043427,-575.04,0.00016594,2]
[357652812,1744275043437,-500.0,0.00016594,2]
[357652813,1744275043446,-500.0,0.00016594,2]
[357652814,1744275043456,-500.0,0.00016594,2]
[357652815,1744275043466,-5436.36,0.00016594,2]
[357652816,1744275043476,-672.12,0.00016594,2]
[357652817,1744275043485,-500.0,0.00016594,2]
[357652818,1744275043496,-500.0,0.00016594,2]
[357652819,1744275043506,-500.0,0.00016594,2]
[357652820,1744275043515,-500.0,0.00016594,2]
[357652821,1744275043525,-519.56,0.00016594,2]
[357652822,1744275043535,-500.0,0.00016594,2]
[357652823,1744275043545,-500.0,0.00016594,2]
[357652824,1744275043555,-724.88,0.00016594,2]
[357652825,1744275043565,-500.0,0.00016594,2]
[357652826,1744275043574,-1198.88,0.00016594,2]
[357652827,1744275043583,-500.0,0.00016594,2]
[357652828,1744275043593,-1036.75,0.00016594,2]
[357652829,1744275043602,-361.57567255,0.00016594,2]
[357652830,1744275043612,-1261.81,0.00016594,2]
[357652831,1744275043622,-647.68,0.00016594,2]
[357652832,1744275043632,-500.0,0.00016594,2]
[357652833,1744275043641,-1093.95854205,0.00016594,2]
[357652850,1744275046870,-471.7899995,0.00016585,2]
[357652852,1744275072288,157.167506,0.0001764,10]
[357652853,1744275094117,809.94,0.00010959,2]
[357652854,1744275104610,674.95,0.00010959,2]
[357652855,1744275115104,562.45,0.00010959,2]
[357652856,1744275125822,468.71,0.00010959,2]
[357652857,1744275136335,390.59,0.00010959,2]
[357652858,1744275146846,325.5,0.00010959,2]
[357652859,1744275157590,271.25,0.00010959,2]
[357652860,1744275168116,226.04,0.00010959,2]
[357652861,1744275178635,188.36,0.00010959,2]
[357652862,1744275189230,156.97,0.00010959,2]
[357652863,1744275199855,784.88,0.00010959,2]
[357652865,1744275402251,-157.93148628,0.00015578,2]
[357652866,1744275412731,-500.0,0.00015578,2]
[357652867,1744275419575,-170.20622126,0.00015578,2]
[357652868,1744275423614,-500.0,0.00015578,2]
[357652869,1744275424700,-996.09806958,0.00015578,2]
[357652870,1744275434346,-250.0,0.00015578,2]
[357652871,1744275483081,-300.0,0.00015578,2]
[357652872,1744275515238,-250.0,0.00015577,2]
[357652873,1744275545234,-192.70139468,0.00015576,2]
[357652874,1744275556094,-107.29860532,0.00015576,2]
[357652875,1744275556118,-86.88202789,0.00015577,2]
[357652876,1744275564769,-163.11797211,0.00015577,2]
[357652877,1744275564795,-24.01863229,0.00015577,2]
[357652879,1744275604829,-277.7817906,0.00015576,2]
[357652880,1744275666719,-300.0,0.00015576,2]
[357652881,1744275673221,-188.05621933,0.00015577,2]
[357652882,1744275709511,-188.05621933,0.00015422,2]
[357652883,1744275709535,-136.87197878,0.00015568,2]
[357652884,1744275724593,-300.0,0.00015568,2]
[357652885,1744275727137,-200.0,0.00015568,2]
[357652886,1744275783255,-191.72352887,0.00015568,2]
[357652887,1744275843625,-15.9083988,0.00015568,2]
[357652888,1744275843650,-150.23979297,0.00015576,2]
[357652889,1744275868545,-149.76020703,0.00015576,2]
[357652890,1744275868571,-287.92514838,0.00015577,2]
[357652891,1744275868598,-500.0,0.00015577,2]
[357652892,1744275868625,-436.5,0.00015577,2]
[357652893,1744275868650,-176.50603043,0.00015577,2]
[357652894,1744275868674,-204.26402536,0.00015577,2]
[357652895,1744275868700,-500.0,0.00015577,2]
[357652896,1744275868725,-500.0,0.00015577,2]
[357652897,1744275868750,-467.72859202,0.00015577,2]
[357652898,1744275868773,-254.68189248,0.00015577,2]
[357652899,1744275868798,-171.5637043,0.00015577,2]
[357652900,1744275904372,-188.02735345,0.00015577,2]
[357652905,1744275964618,-250.90515104,0.00015577,2]
[357652906,1744275981004,-154.82491877,0.00015421,2]
[357652907,1744276023755,-96.08023227,0.00015421,2]
[357652908,1744276023782,-142.76805836,0.00015577,2]
[357652911,1744276074730,-161.44955088,0.00015326,2]
[357652959,1744276231725,-88.55044912,0.00015326,2]
[357652961,1744276231735,-22.61692891,0.00015577,2]
[357652963,1744276231745,-188.02735345,0.00015577,2]
[357652965,1744276231755,-7255.93114288,0.00015578,2]
[357652967,1744276231766,-250.0,0.000159,2]
[357652969,1744276231776,-300.0,0.00016367,2]
[357652971,1744276231785,-2695.27346339,0.00016368,2]
[357652973,1744276231795,-176.16003083,0.00016368,2]
[357652975,1744276231804,-500.0,0.00016467,2]
[357652977,1744276231814,-173.64396258,0.00016467,2]
[357652979,1744276231824,-425.26399928,0.00016467,2]
[357652982,1744276231835,-500.0,0.00016467,2]
[357652984,1744276231844,-525.29202889,0.00016467,2]
[357652986,1744276231853,-500.0,0.00016467,2]
[357652987,1744276231863,-157.93148628,0.00016467,2]
[357652988,1744276231873,-1890.47,0.00016467,2]
[357652990,1744276231883,-500.0,0.00016467,2]
[357652991,1744276231892,-500.0,0.00016467,2]
[357652992,1744276231902,-606.89,0.00016467,2]
[357652993,1744276231912,-500.0,0.00016467,2]
[357652994,1744276231922,-500.0,0.00016467,2]
[357652995,1744276231932,-1100.81,0.00016467,2]
[357652996,1744276231941,-962.29,0.00016467,2]
[357652997,1744276231951,-500.0,0.00016467,2]
[357652998,1744276231961,-500.0,0.00016467,2]
[357652999,1744276231970,-8333.11989997,0.00016468,2]
[357653000,1744276231980,-500.0,0.00016468,2]
[357653001,1744276231989,-5446.58,0.00016468,2]
[357653002,1744276232001,-1519.3,0.00016468,2]
[357653003,1744276232010,-500.0,0.00016468,2]
[357653004,1744276232020,-1810.57,0.00016468,2]
[357653005,1744276232030,-500.0,0.00016468,2]
[357653006,1744276232040,-6061.91,0.00016468,2]
[357653007,1744276232049,-11524.28,0.00016468,2]
[357653008,1744276232059,-5268.61,0.00016468,2]
[357653009,1744276232069,-1554.28922026,0.00016468,2]
[357653010,1744276232110,-921.21077974,0.00016468,2]
[357653011,1744276232120,-565.88,0.00016468,2]
[357653012,1744276232130,-2625.69,0.00016468,2]
[357653013,1744276232140,-649.19,0.00016468,2]
[357653014,1744276232151,-500.0,0.00016468,2]
[357653015,1744276232161,-3220.24,0.00016468,2]
[357653016,1744276232170,-6232.88,0.00016468,2]
[357653017,1744276232181,-4601.62,0.00016468,2]
[357653018,1744276232190,-626.06,0.00016468,2]
[357653019,1744276232200,-659.5,0.00016468,2]
[357653020,1744276232209,-4194.83,0.00016468,2]
[357653021,1744276232219,-500.0,0.00016468,2]
[357653022,1744276232229,-906.17,0.00016468,2]
[357653023,1744276232240,-984.28,0.00016468,2]
[357653024,1744276232414,-500.0,0.00016468,2]
[357653025,1744276232425,-500.0,0.00016468,2]
[357653026,1744276232435,-3974.23,0.00016468,2]
[357653027,1744276232445,-1084.81,0.00016468,2]
[357653028,1744276232455,-5075.52,0.00016468,2]
[357653029,1744276232465,-602.71,0.00016569,2]
[357653030,1744276232475,-920.94,0.00016569,2]
[357653031,1744276232486,-500.0,0.00016569,2]
[357653032,1744276232496,-2138.8,0.00016569,2]
[357653033,1744276232506,-730.66,0.00016569,2]
[357653034,1744276232515,-1003.77,0.00016569,2]
[357653035,1744276232525,-500.0,0.00016569,2]
[357653036,1744276232535,-500.0,0.00016569,2]
[357653037,1744276232545,-500.0,0.00016569,2]
[357653038,1744276232554,-500.0,0.00016569,2]
[357653039,1744276232564,-700.87,0.00016569,2]
[357653040,1744276232574,-500.0,0.00016569,2]
[357653041,1744276232584,-500.0,0.00016569,2]
[357653042,1744276232594,-871.17,0.00016569,2]
[357653043,1744276232604,-500.0,0.00016569,2]
[357653044,1744276232613,-732.7,0.00016569,2]
[357653045,1744276232624,-500.0,0.00016569,2]
[357653046,1744276232634,-500.0,0.00016569,2]
[357653047,1744276232644,-500.0,0.00016569,2]
[357653048,1744276232653,-1448.68,0.00016569,2]
[357653049,1744276232663,-500.0,0.00016569,2]
[357653050,1744276232672,-1124.2,0.00016569,2]
[357653051,1744276232682,-500.0,0.00016569,2]
[357653052,1744276232691,-500.0,0.00016569,2]
[357653053,1744276232701,-500.0,0.00016569,2]
[357653054,1744276232711,-247.8138937,0.00016569,2]
[357653055,1744276232727,-278.80680054,0.00016569,2]
[357653087,1744276237959,-699.02,0.00016468,2]
[357653089,1744276237970,-10.25212197,0.00016569,2]
[357653092,1744276237980,-289.59737878,0.00016569,2]
[357653107,1744276238117,-210.40262122,0.00016569,2]
[357653109,1744276238128,-500.0,0.00016569,2]
[357653111,1744276238138,-500.0,0.00016569,2]
[357653113,1744276238148,-500.0,0.00016569,2]
[357653115,1744276238158,-500.0,0.00016569,2]
[357653117,1744276238168,-201.84457573,0.00016569,2]
[357653120,1744276238179,-500.0,0.00016569,2]
[357653122,1744276238188,-500.0,0.00016569,2]
[357653124,1744276238198,-500.0,0.00016569,2]
[357653126,1744276238207,-500.19,0.00016569,2]
[357653128,1744276238219,-500.0,0.00016569,2]
[357653130,1744276238228,-500.0,0.00016569,2]
[357653132,1744276238237,-783.4,0.00016569,2]
[357653134,1744276238247,-500.0,0.00016569,2]
[357653136,1744276238256,-500.0,0.00016569,2]
[357653138,1744276238265,-500.0,0.00016569,2]
[357653140,1744276238275,-1072.37,0.00016569,2]
[357653142,1744276238284,-500.0,0.00016569,2]
[357653144,1744276238294,-500.0,0.00016569,2]
[357653146,1744276238304,-500.0,0.00016569,2]
[357653148,1744276238313,-500.0,0.00016569,2]
[357653150,1744276238323,-599.3,0.00016569,2]
[357653152,1744276238332,-412.04349987,0.00016569,2]
[357653154,1744276238342,-500.0,0.00016569,2]
[357653156,1744276238352,-500.0,0.00016569,2]
[357653157,1744276238362,-949.12,0.00016569,2]
[357653158,1744276238372,-337.63766338,0.00016569,2]
[357653159,1744276238385,-500.0,0.00016569,2]
[357653160,1744276238396,-500.0,0.00016569,2]
[357653161,1744276238409,-500.0,0.00016569,2]
[357653162,1744276238421,-500.0,0.00016569,2]
[357653163,1744276238431,-944.77,0.00016569,2]
[357653164,1744276238441,-500.0,0.00016569,2]
[357653165,1744276238451,-500.0,0.00016569,2]
[357653166,1744276238462,-156.52463932,0.00016569,2]
[357653167,1744276238472,-500.0,0.00016569,2]
[357653168,1744276238483,-525.10782781,0.00016569,2]
[357653169,1744276238495,-1385.08,0.00016569,2]
[357653170,1744276238505,-504.23586403,0.00016569,2]
[357653171,1744276238515,-500.0,0.00016569,2]
[357653172,1744276238526,-500.0,0.00016569,2]
[357653173,1744276238535,-500.0,0.00016569,2]
[357653174,1744276238545,-595.77,0.00016569,2]
[357653175,1744276238555,-500.0,0.00016569,2]
[357653176,1744276238564,-653.03,0.00016569,2]
[357653177,1744276238575,-500.0,0.00016569,2]
[357653178,1744276238585,-500.0,0.00016569,2]
[357653179,1744276238595,-500.0,0.00016569,2]
[357653180,1744276238605,-505.86181551,0.00016569,2]
[357653181,1744276238614,-500.0,0.00016569,2]
[357653182,1744276238626,-560.16,0.00016569,2]
[357653183,1744276238635,-500.0,0.00016569,2]
[357653184,1744276238645,-677.28,0.00016569,2]
[357653185,1744276238655,-500.0,0.00016569,2]
[357653186,1744276238665,-500.0,0.00016569,2]
[357653187,1744276238674,-500.0,0.00016569,2]
[357653188,1744276238683,-500.0,0.00016569,2]
[357653189,1744276238693,-500.0,0.00016569,2]
[357653190,1744276238703,-620.89,0.00016569,2]
[357653191,1744276238712,-500.0,0.00016569,2]
[357653192,1744276238721,-500.0,0.00016569,2]
[357653193,1744276238731,-785.48,0.00016569,2]
[357653194,1744276238740,-500.0,0.00016569,2]
[357653195,1744276238750,-500.0,0.00016569,2]
[357653196,1744276238759,-579.1,0.00016569,2]
[357653197,1744276238769,-518.74,0.00016569,2]
[357653198,1744276238779,-1224.01,0.00016569,2]
[357653199,1744276238788,-545.3,0.00016569,2]
[357653200,1744276238797,-500.0,0.00016569,2]
[357653201,1744276238806,-500.0,0.00016569,2]
[357653202,1744276238816,-500.0,0.00016569,2]
[357653203,1744276238825,-500.0,0.00016569,2]
[357653204,1744276238835,-500.0,0.00016569,2]
[357653205,1744276238844,-561.00706564,0.00016569,2]
[357653206,1744276238854,-500.0,0.00016569,2]
[357653207,1744276238863,-572.1,0.00016569,2]
[357653208,1744276238872,-498.74572795,0.00016569,2]
[357653212,1744276240109,-1.25427205,0.00016569,2]
[357653213,1744276240118,-718.88572795,0.00016569,2]
[357653214,1744276240162,-445.53588777,0.00016569,2]
[357653215,1744276241631,-0.00393704,0.00016569,2]
[357653216,1744276241643,-546.12444724,0.00016569,2]
[357653217,1744276241652,-168.65636089,0.00016569,2]
[357653218,1744276241680,-330.154,0.00016569,2]
[357653222,1744276243078,-169.31963911,0.00016569,2]
[357653223,1744276243088,-500.0,0.00016569,2]
[357653224,1744276243098,-500.0,0.00016569,2]
[357653225,1744276243108,-775.1,0.00016569,2]
[357653226,1744276243118,-500.0,0.00016569,2]
[357653227,1744276243128,-500.0,0.00016569,2]
[357653228,1744276243138,-500.0,0.00016569,2]
[357653229,1744276243148,-500.0,0.00016569,2]
[357653230,1744276243158,-500.0,0.00016569,2]
[357653231,1744276243168,-1169.78,0.00016569,2]
[357653232,1744276243177,-500.0,0.00016569,2]
[357653233,1744276243188,-1386.88,0.00016569,2]
[357653234,1744276243198,-2208.56,0.00016569,2]
[357653235,1744276243208,-500.0,0.00016569,2]
[357653236,1744276243219,-500.0,0.00016569,2]
[357653237,1744276243230,-611.48405455,0.00016569,2]
[357653238,1744276243241,-616.54479772,0.00016569,2]
[357653239,1744276243252,-722.88,0.00016569,2]
[357653240,1744276243263,-1479.25,0.00016569,2]
[357653241,1744276243273,-2570.61,0.00016569,2]
[357653242,1744276243283,-642.56,0.00016569,2]
[357653243,1744276243293,-500.0,0.00016569,2]
[357653244,1744276243303,-1006.23,0.00016569,2]
[357653245,1744276243313,-500.0,0.00016569,2]
[357653246,1744276243322,-629.73151411,0.00016569,2]
[357653247,1744276243332,-1105.42,0.00016569,2]
[357653248,1744276243342,-500.0,0.00016569,2]
[357653249,1744276243351,-500.0,0.00016569,2]
[357653250,1744276243362,-500.0,0.00016569,2]
[357653251,1744276243372,-500.0,0.00016569,2]
[357653252,1744276243383,-500.0,0.00016569,2]
[357653253,1744276243393,-500.0,0.00016569,2]
[357653254,1744276243403,-500.0,0.00016569,2]
[357653255,1744276243416,-2581.51,0.00016569,2]
[357653256,1744276243426,-500.0,0.00016569,2]
[357653257,1744276243436,-500.0,0.00016569,2]
[357653258,1744276243446,-1233.22,0.00016569,2]
[357653259,1744276243457,-500.0,0.00016569,2]
[357653260,1744276243467,-3954.31,0.00016569,2]
[357653261,1744276243476,-500.0,0.00016569,2]
[357653262,1744276243488,-541.40352438,0.00016569,2]
[357653263,1744276243498,-500.0,0.00016569,2]
[357653264,1744276243508,-542.07,0.00016569,2]
[357653265,1744276243518,-500.0,0.00016569,2]
[357653266,1744276243527,-1105.62,0.00016569,2]
[357653267,1744276243537,-500.0,0.00016569,2]
[357653268,1744276243547,-987.3,0.00016569,2]
[357653269,1744276243558,-726.78,0.00016569,2]
[357653270,1744276243568,-500.0,0.00016569,2]
[357653271,1744276243579,-550.69313035,0.00016569,2]
[357653272,1744276243588,-500.0,0.00016569,2]
[357653273,1744276243600,-500.0,0.00016569,2]
[357653274,1744276243610,-500.0,0.00016569,2]
[357653275,1744276243620,-774.56,0.00016569,2]
[357653276,1744276243632,-500.0,0.00016569,2]
[357653277,1744276243642,-742.87,0.00016569,2]
[357653278,1744276243652,-283.44455926,0.00016569,2]
[357653279,1744276243666,-677.99544074,0.00016569,2]
[357653280,1744276243676,-534.32,0.00016569,2]
[357653281,1744276243686,-539.14,0.00016569,2]
[357653282,1744276243695,-386.07473338,0.00016569,2]
[357653283,1744276243705,-500.0,0.00016569,2]
[357653284,1744276243715,-500.0,0.00016569,2]
[357653285,1744276243726,-500.0,0.00016569,2]
[357653286,1744276243737,-500.0,0.00016569,2]
[357653287,1744276243747,-1434.99,0.00016569,2]
[357653288,1744276243757,-1525.61,0.00016569,2]
[357653289,1744276243767,-629.17,0.00016569,2]
[357653290,1744276243776,-543.74,0.00016569,2]
[357653291,1744276243786,-53.70181048,0.00016569,2]
[357653297,1744276245913,-500.0,0.00016467,2]
[357653298,1744276245924,-500.0,0.00016468,2]
[357653299,1744276245934,-446.29818952,0.00016569,2]
[357653300,1744276246107,-500.0,0.00016569,2]
[357653301,1744276246118,-500.0,0.00016569,2]
[357653302,1744276246128,-314.08456066,0.00016569,2]
[357653303,1744276246141,-185.91543934,0.00016569,2]
[357653304,1744276246152,-500.0,0.00016569,2]
[357653305,1744276246161,-500.0,0.00016569,2]
[357653306,1744276246171,-500.0,0.00016569,2]
[357653307,1744276246181,-784.42,0.00016569,2]
[357653308,1744276246191,-500.0,0.00016569,2]
[357653309,1744276246202,-500.0,0.00016569,2]
[357653310,1744276246211,-500.0,0.00016569,2]
[357653311,1744276246221,-500.0,0.00016569,2]
[357653312,1744276246231,-511.20738771,0.00016569,2]
[357653313,1744276246241,-500.0,0.00016569,2]
[357653314,1744276246250,-500.0,0.00016569,2]
[357653315,1744276246260,-500.0,0.00016569,2]
[357653316,1744276246269,-791.56,0.00016569,2]
[357653317,1744276246279,-2809.5,0.00016569,2]
[357653318,1744276246288,-619.41899225,0.00016569,2]
[357653319,1744276246298,-659.94,0.00016569,2]
[357653320,1744276246308,-500.0,0.00016569,2]
[357653321,1744276246318,-500.0,0.00016569,2]
[357653322,1744276246327,-509.14,0.00016569,2]
[357653323,1744276246337,-500.0,0.00016569,2]
[357653324,1744276246346,-2278.81,0.00016569,2]
[357653325,1744276246356,-500.0,0.00016569,2]
[357653326,1744276246366,-500.0,0.00016569,2]
[357653327,1744276246376,-500.0,0.00016569,2]
[357653328,1744276246386,-500.0,0.00016569,2]
[357653329,1744276246396,-303.1000265,0.00016569,2]
[357653330,1744276246424,-262.2999735,0.00016569,2]
[357653331,1744276246443,-199.84602651,0.00016569,2]
[357653332,1744276246461,-631.87397349,0.00016569,2]
[357653333,1744276246471,-120.25653092,0.00016569,2]
[357653334,1744276271995,152.0,0.00015,2]
[357653335,1744276281660,287.45,0.00010959,2]
[357653336,1744276282049,-273.95575854,0.00015326,2]
[357653337,1744276291907,239.54,0.00010959,2]
[357653338,1744276302310,199.62,0.00010959,2]
[357653339,1744276312818,166.35,0.00010959,2]
[357653340,1744276321255,171.526461,0.00018,10]
[357653341,1744276323286,831.78,0.00010959,2]
[357653342,1744276331580,155.633337,0.00018,10]
[357653343,1744276503929,-226.04424146,0.00015326,2]
[357653344,1744276503954,-20.17918314,0.000155,2]
[357653345,1744276637810,-300.0,0.00015467,2]
[357653346,1744276717348,-190.95493405,0.00015466,2]
[357653347,1744276803973,-200.0,0.000153,2]
[357653348,1744276803998,-24.52615328,0.00015466,2]
[357653349,1744277069009,-3.1554229,0.00015466,2]
[357653350,1744277069033,-207.9620035,0.00015467,2]
[357653361,1744277284655,-199.29166671,0.00015367,2]
[357653362,1744277284680,-3.61348433,0.0001544,2]
[357653366,1744277337831,-191.72352889,0.0001544,2]
[357653368,1744277343629,-24.07393908,0.0001544,2]
[357653369,1744277343654,-225.92606092,0.0001544,2]
[357653379,1744277405797,-183.8779309,0.00015367,2]
[357653394,1744277431942,-7.84559799,0.00015367,2]
[357653396,1744277431952,-920.29991193,0.0001544,2]
[357653398,1744277431965,-406.99,0.0001544,2]
[357653402,1744277432003,-2451.37634365,0.0001544,2]
[357653404,1744277432014,-5976.8512493,0.00015467,2]